bitfinex/quotes_ETHUSD_20251010
["timestamp","ask_amount","ask_price","bid_price","bid_amount"]
[1760091564810,0.4401,4340.0,4339.8,0.001]
[1760091565011,2.74425791,4340.0,4339.8,0.001]
[1760091565216,0.4401,4339.9,4339.8,0.001]
[1760091566327,2.74430055,4339.9,4339.8,0.001]
[1760091566828,0.4401,4339.9,4339.8,0.001]
[1760091570835,0.6602,4339.9,4339.8,0.001]
[1760091571041,0.1152,4340.1,4339.8,0.001]
[1760091571221,0.4592,4339.9,4339.8,0.001]
[1760091571734,0.1152,4340.1,4339.8,0.001]
[1760091572122,0.4592,4340.0,4339.8,0.001]
[1760091572500,0.4592,4339.9,4339.8,0.001]
[1760091572937,2.96460055,4339.9,4339.8,0.001]
[1760091574053,7.10825668,4339.9,4339.8,0.001]
[1760091575722,2.96460055,4339.9,4339.8,0.001]
[1760091576330,9.47180055,4339.9,4339.8,0.001]
[1760091577016,11.39180055,4339.9,4339.8,0.001]
[1760091577513,4.88380055,4339.9,4339.8,0.001]
[1760091577719,11.39180055,4339.9,4339.8,0.001]
[1760091578645,9.47180055,4339.9,4339.8,0.001]
[1760091580004,2.96380055,4339.9,4339.8,0.001]
[1760091580209,9.47180055,4339.9,4339.8,0.001]
[1760091580411,2.96380055,4339.9,4339.8,0.001]
[1760091580931,9.47180055,4339.9,4339.8,0.001]
[1760091582726,9.47080055,4339.9,4339.8,0.001]
[1760091583626,2.96380055,4339.9,4339.8,0.001]
[1760091583949,9.47080055,4339.9,4339.8,0.001]
[1760091588417,11.39080055,4339.9,4339.8,0.001]
[1760091588620,16.02829905,4339.9,4339.8,0.001]
[1760091592420,2.41584237,4339.9,4339.8,0.001]
[1760091592663,2.3514,4339.9,4339.8,0.001]
[1760091592830,8.4634,4339.9,4339.8,0.001]
[1760091593369,11.16160055,4339.9,4339.8,0.001]
[1760091594164,4.65560055,4339.9,4339.8,0.001]
[1760091594371,11.16160055,4339.9,4339.8,0.001]
[1760091594669,8.8574,4339.9,4339.8,0.001]
[1760091594967,1.922,4339.9,4339.8,0.001]
[1760091595346,6.508,4339.9,4339.8,0.001]
[1760091598483,6.5072,4339.9,4339.8,0.001]
[1760091598654,6.6224,4339.9,4339.8,0.001]
[1760091600676,7.0528,4339.9,4339.8,0.001]
[1760091600875,9.58300055,4339.9,4339.8,0.001]
[1760091601294,9.58200055,4339.9,4339.8,0.001]
[1760091601863,7.0518,4339.9,4339.8,0.001]
[1760091605392,0.5468,4339.9,4339.8,0.001]
[1760091605601,7.0518,4339.9,4339.8,0.001]
[1760091610370,9.35600055,4339.9,4339.8,0.001]
[1760091610573,9.58200055,4339.9,4339.8,0.001]
[1760091610777,14.2197302,4339.9,4339.8,0.001]
[1760091614306,16.1397302,4339.9,4339.8,0.001]
[1760091615513,11.99607407,4339.9,4339.8,0.001]
[1760091617322,16.8784007,4339.9,4339.8,0.001]
[1760091620327,16.8776007,4339.9,4339.8,0.001]
[1760091620492,17.5112007,4339.9,4339.8,0.001]
[1760091620699,23.1650007,4339.9,4339.8,0.001]
[1760091621436,23.98738755,4339.9,4339.8,0.001]
[1760091621838,23.1650007,4339.9,4339.8,0.001]
[1760091622322,23.98709244,4339.9,4339.8,0.001]
[1760091622934,4.85806605,4339.4,4339.3,1e-08]
[1760091623144,25.72943316,4339.4,4339.3,1e-08]
[1760091623310,25.3387662,4339.4,4339.3,1e-08]
[1760091623710,25.43117707,4339.4,4339.3,1e-08]
[1760091623924,2.93822538,4339.1,4339.0,0.001]
[1760091624127,11.36222538,4339.1,4339.0,0.001]
[1760091624455,12.2875989,4339.1,4339.0,0.001]
[1760091625335,13.10760962,4339.1,4339.0,0.001]
[1760091626264,12.38001809,4339.1,4339.0,0.001]
[1760091628862,14.78201809,4339.1,4339.0,0.001]
[1760091629067,15.39639894,4339.1,4339.0,0.001]
[1760091629368,2.9385441,4338.5,4338.4,0.001]
[1760091629539,16.24687073,4338.5,4338.4,0.001]
[1760091629738,16.67817073,4338.5,4338.4,0.001]
[1760091630124,10.26458992,4338.5,4338.4,0.001]
[1760091630322,19.17058992,4338.5,4338.4,0.001]
[1760091631747,10.26458992,4338.5,4338.4,0.001]
[1760091631947,19.17058992,4338.5,4338.4,0.001]
[1760091632556,10.26458992,4338.5,4338.4,0.001]
[1760091632755,19.17058992,4338.5,4338.4,0.001]
[1760091634561,16.77158992,4338.5,4338.4,0.001]
[1760091634783,19.17158992,4338.5,4338.4,0.001]
[1760091634978,10.26458992,4338.5,4338.4,0.001]
[1760091635180,19.17158992,4338.5,4338.4,0.001]
[1760091636094,4.74866329,4338.5,4338.4,0.001]
[1760091636246,13.5632441,4338.5,4338.4,0.001]
[1760091638767,13.5622441,4338.5,4338.4,0.001]
[1760091639073,4.6562441,4338.5,4338.4,0.001]
[1760091639275,11.2573,4338.5,4338.4,0.001]
[1760091639482,13.5622441,4338.5,4338.4,0.001]
[1760091640655,2.3513,4338.5,4338.4,0.001]
[1760091640957,8.8583,4338.5,4338.4,0.001]
[1760091641187,11.1632441,4338.5,4338.4,0.001]
[1760091642391,11.1624441,4338.5,4338.4,0.001]
[1760091644085,11.1614441,4338.5,4338.4,0.001]
[1760091645290,9.2422441,4338.5,4338.4,0.001]
[1760091653210,11.1622441,4338.5,4338.4,0.001]
[1760091653412,11.6555246,4338.5,4338.4,0.001]
[1760091660717,4.6562441,4338.5,4338.4,0.001]
[1760091660918,11.65579871,4338.5,4338.4,0.001]
[1760091664412,11.65779871,4338.5,4338.4,0.001]
[1760091664619,11.65699871,4338.5,4338.4,0.001]
[1760091666023,11.22549871,4338.5,4338.4,0.001]
[1760091666718,11.65519871,4338.5,4338.4,0.001]
[1760091672796,9.73519871,4338.5,4338.4,0.001]
[1760091674836,9.2416441,4338.5,4338.4,0.001]
[1760091675242,2.7366441,4338.5,4338.4,0.001]
[1760091675425,0.002,4338.5,4338.4,4.1492266]
[1760091675737,0.002,4338.5,4338.4,7.32704649]
[1760091676100,0.002,4338.5,4338.4,7.44224649]
[1760091685718,0.002,4338.5,4338.4,3.29401989]
[1760091686540,0.0012,4338.5,4338.4,3.29401989]
[1760091686751,0.0012,4338.5,4338.4,7.44224649]
[1760091687341,0.0012,4338.5,4338.4,2.83721989]
[1760091689442,0.4309,4338.5,4338.4,0.53222266]
[1760091689645,0.0012,4338.5,4338.4,2.83721989]
[1760091691128,0.0012,4338.5,4338.4,3.28191989]
[1760091691532,0.0012,4338.5,4338.4,3.30496986]
[1760091692255,0.0012,4338.5,4338.4,5.95093016]
[1760091692455,0.0012,4338.5,4338.4,5.92788019]
[1760091693263,1e-08,4338.8,4338.7,2.93843785]
[1760091693464,1e-08,4338.8,4338.7,17.05695561]
[1760091693638,1e-08,4338.8,4338.7,17.59380724]
[1760091694063,1e-08,4338.8,4338.7,17.68615837]
[1760091694636,1e-08,4338.8,4338.7,23.75438497]
[1760091695360,1e-08,4338.8,4338.7,19.60615837]
[1760091697356,1e-08,4338.8,4338.7,23.75438497]
[1760091698046,1e-08,4338.8,4338.7,19.60615837]
[1760091699779,1e-08,4338.8,4338.7,23.63918497]
[1760091700188,0.002,4339.0,4338.9,4.85833161]
[1760091700483,0.002,4339.0,4338.9,13.61410206]
[1760091700788,0.002,4339.0,4338.9,14.05880206]
[1760091700995,0.002,4339.0,4338.9,14.15114914]
[1760091703693,0.002,4339.0,4338.9,14.26953678]
[1760091707185,0.002,4339.0,4338.9,14.15114914]
[1760091708793,0.0012,4339.0,4338.9,14.15114914]
[1760091709692,0.0012,4339.0,4338.9,14.26634914]
[1760091720435,0.0012,4339.0,4338.9,5.20874914]
[1760091720740,0.0012,4339.0,4338.9,0.09234708]
[1760091720894,0.0012,4339.0,4338.9,6.59334708]
[1760091721236,0.0012,4339.0,4338.9,8.80573161]
[1760091721649,0.0012,4339.0,4338.9,6.501]
[1760091722156,0.0012,4339.0,4338.8,6.502]
[1760091722157,0.4348,4339.0,4338.8,6.502]
[1760091722533,0.3348,4339.0,4338.8,6.502]
[1760091722725,0.002,4339.3,4338.8,0.001]
[1760091723951,0.002,4339.3,4339.2,2.30457227]
[1760091724116,0.002,4339.3,4339.2,2.77277227]
[1760091724317,0.002,4339.3,4339.2,2.30457227]
[1760091725452,0.002,4339.3,4339.2,2.77277227]
[1760091725843,0.002,4339.3,4339.2,2.30457227]
[1760091726758,0.002,4339.3,4339.1,6.501]
[1760091726916,0.2337,4339.2,4338.8,0.001]
[1760091727112,0.2337,4339.1,4338.8,8.8067463]
[1760091727352,0.2337,4339.0,4338.8,8.8067463]
[1760091727553,0.002,4339.3,4338.8,6.502]
[1760091727764,0.2337,4339.2,4338.8,6.502]
[1760091728056,0.002,4339.3,4338.8,6.502]
[1760091728852,0.002,4339.3,4338.8,6.9702]
[1760091729154,0.002,4339.3,4338.9,2.30473161]
[1760091729356,0.2337,4339.2,4338.8,6.502]
[1760091729656,0.2337,4339.1,4338.8,6.502]
[1760091729818,0.2337,4339.0,4338.8,6.502]
[1760091730021,0.2337,4338.9,4338.8,6.502]
[1760091730243,0.2337,4338.9,4338.8,0.001]
[1760091730938,0.2329,4338.9,4338.8,0.001]
[1760091733615,0.1152,4339.1,4338.8,0.001]
[1760091733814,0.1152,4339.1,4338.8,2.30577924]
[1760091734053,0.1152,4339.1,4338.8,0.001]
[1760091734620,0.3473,4339.1,4338.8,0.001]
[1760091734821,0.1152,4339.1,4338.8,0.001]
[1760091735033,0.2321,4339.0,4338.8,0.001]
[1760091737026,0.2321,4338.9,4338.8,0.001]
[1760091741692,2.53683161,4338.9,4338.8,0.001]
[1760091741975,4.45683161,4338.9,4338.8,0.001]
[1760091747488,5.58301386,4338.9,4338.8,0.001]
[1760091749168,5.69689617,4338.9,4338.8,0.001]
[1760091751670,6.51690689,4338.9,4338.8,0.001]
[1760091752490,21.76089617,4338.9,4338.8,0.001]
[1760091752859,21.76009617,4338.9,4338.8,0.001]
[1760091754167,21.76209617,4338.9,4338.8,0.001]
[1760091755486,12.85809617,4338.9,4338.8,0.001]
[1760091755686,21.76209617,4338.9,4338.8,0.001]
[1760091756281,22.58210689,4338.9,4338.8,0.001]
[1760091760667,23.18431847,4338.9,4338.8,0.001]
[1760091763303,22.36430775,4338.9,4338.8,0.001]
[1760091764016,14.27989346,4338.9,4338.8,0.001]
[1760091764213,23.18489346,4338.9,4338.8,0.001]
[1760091764419,22.36530775,4338.9,4338.8,0.001]
[1760091765698,19.96530775,4338.9,4338.8,0.001]
[1760091765888,13.46030775,4338.9,4338.8,0.001]
[1760091766087,22.36530775,4338.9,4338.8,0.001]
[1760091767925,19.96530775,4338.9,4338.8,0.001]
[1760091768229,22.36530775,4338.9,4338.8,0.001]
[1760091769154,2.9385441,4338.5,4338.4,0.001]
[1760091769297,16.24602205,4338.5,4338.4,0.001]
[1760091769625,16.9691043,4338.5,4338.4,0.001]
[1760091771553,17.78972525,4338.5,4338.4,0.001]
[1760091772758,20.18972525,4338.5,4338.4,0.001]
[1760091773336,11.28472525,4338.5,4338.4,0.001]
[1760091773636,20.18972525,4338.5,4338.4,0.001]
[1760091774957,20.18892525,4338.5,4338.4,0.001]
[1760091776267,11.28392525,4338.5,4338.4,0.001]
[1760091776468,19.3683043,4338.5,4338.4,0.001]
[1760091779489,20.60033346,4338.5,4338.4,0.001]
[1760091779789,4.85870349,4338.2,4338.1,1e-08]
[1760091780092,11.85628574,4338.2,4338.1,1e-08]
[1760091780397,4.85902235,4337.6,4337.5,1e-08]
[1760091780578,20.37524998,4337.6,4337.5,1e-08]
[1760091780782,19.46788255,4337.6,4337.5,1e-08]
[1760091781182,2.30574129,4337.0,4336.1,0.01]
[1760091781409,16.24681924,4337.0,4336.1,0.01]
[1760091781750,16.24681924,4337.0,4336.1,1e-08]
[1760091781751,4.85976668,4336.2,4336.1,1e-08]
[1760091781989,19.14082688,4336.2,4336.1,1e-08]
[1760091782292,19.46962688,4336.2,4336.1,1e-08]
[1760091782514,20.29070681,4336.2,4336.1,1e-08]
[1760091782874,2.30669865,4335.2,4335.1,0.01]
[1760091783085,16.0961766,4335.2,4335.1,0.01]
[1760091783391,19.46857641,4335.2,4335.1,0.01]
[1760091785697,19.92662262,4335.2,4335.1,0.01]
[1760091786200,19.92662262,4335.2,4335.1,1e-08]
[1760091786575,7.18970881,4334.2,4333.3,0.001]
[1760091786905,18.01770881,4334.2,4333.3,0.001]
[1760091787105,18.34390881,4334.2,4333.3,0.001]
[1760091790202,18.97750881,4334.2,4333.3,0.001]
[1760091791789,7.82352176,4333.8,4333.3,0.001]
[1760091791985,22.51773458,4333.8,4333.3,0.001]
[1760091792172,22.84283458,4333.8,4333.3,0.001]
[1760091796414,22.35462176,4333.8,4333.3,0.001]
[1760091796772,22.44715683,4333.8,4333.3,0.001]
[1760091796976,11.05487888,4333.8,4333.3,0.001]
[1760091797194,19.96787888,4333.8,4333.3,0.001]
[1760091798276,24.85035683,4333.8,4333.3,0.001]
[1760091799493,24.12955607,4333.8,4333.3,0.001]
[1760091801411,31.28955607,4333.8,4333.3,0.001]
[1760091801614,31.77651757,4333.8,4333.3,0.001]
[1760091802108,22.86351757,4333.8,4333.3,0.001]
[1760091802282,41.39155365,4333.8,4333.3,0.001]
[1760091802727,22.86355365,4333.8,4333.3,0.001]
[1760091803099,41.39155365,4333.8,4333.3,0.001]
[1760091803392,22.86355365,4333.8,4333.3,0.001]
[1760091803798,41.39155365,4333.8,4333.3,0.001]
[1760091806296,23.47206319,4333.8,4333.3,0.001]
[1760091806634,42.00006319,4333.8,4333.3,0.001]
[1760091807443,41.39255365,4333.8,4333.3,0.001]
[1760091808819,22.86355365,4333.8,4333.3,0.001]
[1760091809021,41.39255365,4333.8,4333.3,0.001]
[1760091809336,41.39255365,4333.8,4333.6,0.001]
[1760091809522,41.39455365,4333.8,4333.6,0.001]
[1760091810526,22.86555365,4333.8,4333.6,0.001]
[1760091810722,31.78055365,4333.8,4333.6,0.001]
[1760091811128,22.86555365,4333.8,4333.6,0.001]
[1760091811308,4.8612568,4333.4,4333.3,0.001]
[1760091811639,11.86125438,4333.4,4333.3,0.001]
[1760091811842,9.83503157,4333.4,4333.3,0.001]
[1760091812053,18.75103157,4333.4,4333.3,0.001]
[1760091812226,19.97973709,4333.4,4333.3,0.001]
[1760091813433,18.75103157,4333.4,4333.3,0.001]
[1760091817538,9.83503157,4333.4,4333.3,0.001]
[1760091817771,18.75103157,4333.4,4333.3,0.001]
[1760091819026,18.75023157,4333.4,4333.3,0.001]
[1760091820278,4.34291005,4333.3,4333.2,0.001]
[1760091820581,3.33029758,4333.3,4333.2,0.001]
[1760091820784,3.82819197,4333.3,4333.2,0.001]
[1760091821092,10.13648641,4333.3,4333.2,0.001]
[1760091821290,11.76429758,4333.3,4333.2,0.001]
[1760091821877,5.77229646,4333.3,4333.2,0.001]
[1760091822084,12.28629646,4333.3,4333.2,0.001]
[1760091822293,11.66900763,4333.3,4333.2,0.001]
[1760091822652,9.36129758,4333.3,4333.2,0.001]
[1760091822998,11.66900763,4333.3,4333.2,0.001]
[1760091824555,9.03619758,4333.3,4333.2,0.001]
[1760091824778,9.36129758,4333.3,4333.2,0.001]
[1760091824986,2.52219758,4333.3,4333.2,0.001]
[1760091825202,9.03619758,4333.3,4333.2,0.001]
[1760091825855,9.03619758,4333.3,4333.2,0.23288018]
[1760091826054,7.11619758,4333.3,4333.2,0.23288018]
[1760091826586,6.6292,4333.3,4333.2,0.23288018]
[1760091826996,6.6292,4333.3,4333.2,0.001]
[1760091827997,6.513,4333.3,4333.2,2.76446331]
[1760091828295,6.513,4333.3,4333.2,0.001]
[1760091828690,6.837,4333.3,4333.2,0.001]
[1760091829003,6.9522,4333.3,4333.2,0.001]
[1760091829202,9.75280287,4333.3,4333.2,0.001]
[1760091829411,9.25991005,4333.3,4333.2,0.001]
[1760091830780,6.9522,4333.3,4333.2,0.001]
[1760091831490,9.25991005,4333.3,4333.2,0.001]
[1760091832997,6.9522,4333.3,4333.2,0.001]
[1760091833803,6.6282,4333.3,4333.2,0.001]
[1760091834172,0.1152,4333.3,4333.2,0.001]
[1760091834515,0.1152,4333.6,4333.4,2.30764618]
[1760091834806,2.38,4333.5,4333.4,2.30764618]
[1760091835008,2.38,4333.5,4333.3,2.30769541]
[1760091836406,0.1152,4333.6,4333.2,2.30875507]
[1760091836615,2.323,4333.7,4333.4,0.2342773]
[1760091836786,2.323,4333.7,4333.5,0.02307603]
[1760091836977,0.002,4333.7,4333.6,2.7544503]
[1760091837500,0.002,4333.7,4333.5,2.30758713]
[1760091837700,0.002,4333.7,4333.5,3.6672324]
[1760091837901,0.002,4333.7,4333.6,2.3075503]
[1760091838210,0.002,4333.7,4333.6,2.7544503]
[1760091838423,0.002,4333.7,4333.6,2.7775258]
[1760091838879,0.002,4333.7,4333.6,7.05440299]
[1760091839207,0.002,4333.7,4333.6,8.08223529]
[1760091840806,0.002,4333.7,4333.6,3.9205581]
[1760091841309,0.0012,4333.7,4333.6,3.9205581]
[1760091846019,0.3242,4333.7,4333.4,0.2342773]
[1760091846216,0.3242,4333.7,4333.3,2.42290224]
[1760091846418,0.0012,4333.7,4333.3,2.86980224]
[1760091847006,0.0012,4333.7,4333.4,2.30764605]
[1760091847400,0.0012,4333.7,4333.6,2.3075503]
[1760091847597,0.0012,4333.7,4333.5,2.77757723]
[1760091847927,0.0012,4333.7,4333.5,2.87214497]
[1760091849288,0.0012,4333.7,4333.5,0.54146774]
[1760091849524,0.0012,4333.7,4333.3,2.42287133]
[1760091849826,0.0012,4333.7,4333.5,2.30760245]
[1760091850009,0.0012,4333.7,4333.6,0.0230755]
[1760091850336,0.0012,4333.7,4333.6,2.8927258]
[1760091853505,0.0012,4333.7,4333.6,2.8696503]
[1760091853701,0.0012,4333.7,4333.6,4.45494514]
[1760091855392,0.0012,4333.7,4333.6,1.70049484]
[1760091855623,0.0012,4333.7,4333.6,0.1152]
[1760091856397,0.0012,4333.7,4333.6,0.5621]
[1760091857635,0.0012,4333.7,4333.6,2.8927258]
[1760091863254,0.0004,4333.7,4333.6,2.8927258]
[1760091864253,0.0004,4333.7,4333.6,2.8937258]
[1760091864957,0.0004,4333.7,4333.6,4.55483697]
[1760091868329,0.0004,4333.7,4333.6,9.44760194]
[1760091868527,0.0004,4333.7,4333.6,9.42452644]
[1760091875850,0.0004,4333.7,4333.6,10.05812644]
[1760091876076,0.002,4334.2,4334.1,2.30728409]
[1760091876383,0.002,4334.2,4334.1,14.39221288]
[1760091876559,0.002,4334.2,4334.1,10.07534791]
[1760091877282,0.002,4334.2,4334.1,10.16780705]
[1760091885486,0.0012,4334.2,4334.1,10.16680705]
[1760091885694,0.0012,4334.2,4334.1,3.34464791]
[1760091885857,0.0012,4334.2,4334.1,9.39618409]
[1760091889312,0.0012,4334.2,4334.1,9.62448409]
[1760091899302,0.0012,4334.2,4334.1,9.62548409]
[1760091903038,0.0012,4334.2,4334.1,10.14388409]
[1760091903413,0.0012,4334.2,4334.1,10.23633704]
[1760091903739,0.0012,4334.2,4334.1,11.97998266]
[1760091904102,0.0012,4334.2,4334.1,13.89998266]
[1760091907356,0.0004,4334.2,4334.1,13.89998266]
[1760091911128,0.0004,4334.2,4334.1,18.79274763]
[1760091912131,0.0004,4334.2,4334.1,20.55614763]
[1760091912327,0.0004,4334.2,4334.1,4.83338266]
[1760091912555,0.0004,4334.2,4334.1,9.50628409]
[1760091913151,0.0004,4334.2,4334.1,9.62148409]
[1760091914569,0.0004,4334.2,4334.1,0.1162]
[1760091914771,0.0004,4334.2,4334.1,0.001]
[1760091914942,0.4666,4334.2,4334.1,0.001]
[1760091915327,2.77383086,4334.2,4334.1,0.001]
[1760091917265,4.69383086,4334.2,4334.1,0.001]
[1760091921686,8.85335137,4334.2,4334.1,0.001]
[1760091925655,17.76835137,4334.2,4334.1,0.001]
[1760091927392,4.69383086,4334.2,4334.1,0.001]
[1760091927752,13.60883086,4334.2,4334.1,0.001]
[1760091929493,13.60803086,4334.2,4334.1,0.001]
[1760091929691,4.69303086,4334.2,4334.1,0.001]
[1760091929856,9.28603086,4334.2,4334.1,0.001]
[1760091930053,11.20603086,4334.2,4334.1,0.001]
[1760091935109,11.20803086,4334.2,4334.1,0.001]
[1760091938481,15.36755137,4334.2,4334.1,0.001]
[1760091938786,15.859313,4334.2,4334.1,0.001]
[1760091938991,11.69979249,4334.2,4334.1,0.001]
[1760091939185,12.33339249,4334.2,4334.1,0.001]
[1760091939410,16.492913,4334.2,4334.1,0.001]
[1760091939579,6.07952051,4333.7,4333.6,0.001]
[1760091939780,21.16877919,4333.7,4333.6,0.001]
[1760091940001,21.62287919,4333.7,4333.6,0.001]
[1760091940683,21.71540998,4333.7,4333.6,0.001]
[1760091942093,22.33167186,4333.7,4333.6,0.001]
[1760091944219,21.71540998,4333.7,4333.6,0.001]
[1760091944719,22.16683164,4333.7,4333.6,0.001]
[1760091946786,22.78319793,4333.7,4333.6,0.001]
[1760091947898,22.16683164,4333.7,4333.6,0.001]
[1760091948621,22.16783164,4333.7,4333.6,0.001]
[1760091948829,25.18711572,4333.7,4333.6,0.001]
[1760091951516,12.10979521,4333.7,4333.6,0.001]
[1760091951829,20.95258034,4333.7,4333.6,0.001]
[1760091952501,20.31898034,4333.7,4333.6,0.001]
[1760091952819,14.54198034,4333.7,4333.6,0.001]
[1760091958213,12.13798034,4333.7,4333.6,0.001]
[1760091958429,14.54098034,4333.7,4333.6,0.001]
[1760091963740,12.16768034,4333.7,4333.6,0.001]
[1760091963903,12.10411871,4333.7,4333.6,0.001]
[1760091964103,14.02411871,4333.7,4333.6,0.001]
[1760091964329,11.62111871,4333.7,4333.6,0.001]
[1760091964615,8.434,4333.7,4333.6,0.001]
[1760091964824,6.514,4333.7,4333.6,0.4751]
[1760091965221,6.514,4333.7,4333.6,0.75337559]
[1760091966142,6.514,4333.7,4333.6,0.001]
[1760091967033,9.24969705,4333.7,4333.6,0.001]
[1760091967237,11.16969705,4333.7,4333.6,0.001]
[1760091969915,11.17169705,4333.7,4333.6,0.001]
[1760091973650,11.17089705,4333.7,4333.6,0.001]
[1760091981857,11.66496215,4333.7,4333.6,0.001]
[1760091990679,2.30760355,4333.5,4332.5,2.30812497]
[1760091990880,6.964,4333.4,4332.5,2.30812497]
[1760091991183,6.964,4333.4,4332.5,2.75582497]
[1760091991478,0.451,4333.3,4332.5,3.26242655]
[1760091991665,8.82080696,4333.2,4332.5,3.26242301]
[1760091991872,2.30782807,4333.1,4332.5,3.26242301]
[1760091992052,6.513,4333.0,4332.5,3.26242301]
[1760091992596,6.513,4333.0,4332.6,2.30807958]
[1760091993003,6.513,4333.0,4332.5,3.2624201]
[1760091993815,6.513,4333.0,4332.6,2.30808195]
[1760091994386,6.513,4333.0,4332.7,2.84338229]
[1760091994699,6.513,4333.0,4332.7,0.53536721]
[1760091994895,0.451,4333.4,4332.7,0.53536721]
[1760091995078,6.513,4333.3,4332.7,0.53536721]
[1760091995278,6.513,4333.3,4332.7,2.77879522]
[1760091995797,6.5122,4333.3,4332.8,0.4477]
[1760091996095,6.5122,4333.3,4332.9,2.33096174]
[1760091996261,6.5122,4333.3,4333.0,2.75555704]
[1760091996464,6.5122,4333.3,4333.1,0.47077816]
[1760092000281,6.5122,4333.3,4333.1,0.4477]
[1760092000664,6.5122,4333.3,4332.8,0.1152]
[1760092000912,6.5122,4333.3,4332.8,0.5629]
[1760092002590,6.5122,4333.3,4332.8,0.1152]
[1760092002793,0.451,4333.2,4332.8,0.1152]
[1760092005104,8.81991265,4333.3,4332.8,0.1152]
[1760092005105,8.81994357,4333.3,4332.8,0.1152]
[1760092005309,0.451,4333.1,4332.8,0.1162]
[1760092005608,0.451,4333.0,4332.8,0.1162]
[1760092006004,0.451,4332.9,4332.8,0.1162]
[1760092006181,0.451,4333.1,4332.8,0.001]
[1760092006506,0.451,4332.9,4332.8,0.001]
[1760092006905,11.1919231,4332.9,4332.8,0.001]
[1760092007096,11.6871042,4332.9,4332.8,0.001]
[1760092012420,11.1919231,4332.9,4332.8,0.001]
[1760092014236,4.6789231,4332.9,4332.8,0.001]
[1760092014405,13.5949231,4332.9,4332.8,0.001]
[1760092016532,8.884,4332.9,4332.8,0.001]
[1760092017045,11.1919231,4332.9,4332.8,0.001]
[1760092017402,1.92,4332.9,4332.8,0.001]
[1760092017708,8.4924,4332.9,4332.8,0.001]
[1760092018643,6.5732,4332.9,4332.8,0.4467]
[1760092018840,6.458,4332.9,4332.8,0.4467]
[1760092019518,6.458,4332.9,4332.8,0.736001]
[1760092019707,6.513,4333.1,4332.8,0.736001]
[1760092019915,6.513,4333.1,4332.9,0.4457]
[1760092020115,6.513,4333.1,4332.8,0.290301]
[1760092020316,6.513,4333.1,4332.8,0.736001]
[1760092020725,6.513,4333.1,4332.9,0.4457]
[1760092022438,6.513,4333.1,4332.8,0.290301]
[1760092022439,6.513,4333.1,4332.8,0.001]
[1760092023651,6.513,4333.1,4332.8,0.4467]
[1760092025122,6.513,4333.1,4332.9,0.02307923]
[1760092029125,4.82791114,4333.3,4333.2,2.30776331]
[1760092029126,0.002,4333.3,4333.2,2.30776331]
[1760092029322,0.002,4333.3,4333.2,2.75346331]
[1760092029523,0.002,4333.3,4333.2,2.77654094]
[1760092033702,0.002,4333.3,4333.2,0.4457]
[1760092034576,0.002,4333.3,4333.2,2.75346331]
[1760092034739,0.002,4333.3,4333.2,3.30005202]
[1760092036742,0.002,4333.3,4333.2,0.99228871]
[1760092037125,0.002,4333.3,4333.2,3.30005202]
[1760092038262,0.002,4333.3,4333.2,0.99228871]
[1760092039264,0.002,4333.3,4333.2,3.30005202]
[1760092039937,0.0012,4333.3,4333.2,3.30005202]
[1760092040734,0.0012,4333.3,4333.2,0.99228871]
[1760092040939,0.0012,4333.3,4333.2,3.30005202]
[1760092041476,0.0012,4333.3,4333.0,0.1152]
[1760092042471,0.0012,4333.3,4333.0,0.5609]
[1760092042881,0.0012,4333.3,4333.0,2.86876007]
[1760092043883,0.0012,4333.3,4333.0,0.5609]
[1760092046479,0.0012,4333.3,4333.0,0.1152]
[1760092049927,0.4658,4333.2,4333.0,0.1152]
[1760092050089,0.0012,4333.3,4333.0,0.1152]
[1760092051116,0.4658,4333.2,4333.0,0.1152]
[1760092051316,0.0012,4333.3,4333.0,0.1152]
[1760092051525,0.4658,4333.1,4333.0,0.1152]
[1760092052025,0.0012,4333.3,4333.0,0.1152]
[1760092052209,0.4658,4333.2,4333.0,0.1152]
[1760092052936,0.4658,4333.1,4333.0,0.1152]
[1760092053398,0.0012,4333.3,4333.0,0.1152]
[1760092053734,0.467,4333.3,4333.0,0.1152]
[1760092056328,2.77472486,4333.3,4333.0,0.1152]
[1760092057517,0.467,4333.3,4333.0,0.1152]
[1760092057725,0.467,4333.3,4333.0,0.1162]
[1760092058922,0.4658,4333.2,4333.0,0.1162]
[1760092062118,0.0012,4333.3,4333.0,0.1162]
[1760092062328,0.467,4333.3,4333.0,0.1162]
[1760092062622,0.4662,4333.3,4333.0,0.1162]
[1760092062924,0.4658,4333.2,4333.0,0.1162]
[1760092063327,0.4662,4333.3,4333.0,0.1162]
[1760092064856,0.0004,4333.3,4333.0,0.1162]
[1760092065046,0.4658,4333.2,4333.0,0.1162]
[1760092065352,0.4658,4333.1,4333.0,0.1162]
[1760092066439,0.4662,4333.3,4333.0,0.1162]
[1760092066651,0.4658,4333.2,4333.0,0.1162]
[1760092067390,0.4453,4333.1,4333.0,0.1162]
[1760092068244,0.4457,4333.3,4333.0,0.1162]
[1760092068442,0.4453,4333.2,4333.0,0.1162]
[1760092068749,2.30781657,4333.1,4333.0,0.001]
[1760092069123,2.75311657,4333.1,4333.0,0.001]
[1760092071875,8.83281561,4333.1,4333.0,0.001]
[1760092072052,9.32768977,4333.1,4333.0,0.001]
[1760092072375,9.3274889,4333.1,4333.0,0.001]
[1760092078698,5.16778986,4333.1,4333.0,0.001]